[Event "*** Titled Tuesday Blitz"]
[Site "Chess.com"]
[Date "2019.09.03"]
[Round "7"]
[White "ALEXJR20"]
[Black "Induwara_IM"]
[Result "1-0"]
[WhiteElo "2237"]
[BlackElo "2370"]
[TimeControl "180+2"]
[EndTime "16:32:57 PDT"]
[Termination "ALEXJR20 won by resignation"]

1. c4 {[%clk 0:03:01.4]} 1... e5 {[%clk 0:02:49.9]} 2. e3 {[%clk 0:03:01.2]}
2... Nc6 {[%clk 0:02:47]} 3. Nc3 {[%clk 0:03:01.7]} 3... Nf6 {[%clk 0:02:47.1]}
4. Nf3 {[%clk 0:03:02]} 4... d5 {[%clk 0:02:46.9]} 5. cxd5 {[%clk 0:03:02.5]}
5... Nxd5 {[%clk 0:02:48.8]} 6. Bb5 {[%clk 0:03:03.6]} 6... Nxc3 {[%clk
0:02:49.7]} 7. dxc3 {[%clk 0:03:00.6]} 7... Bd6 {[%clk 0:02:47.4]} 8. e4 {[%clk
0:02:59.2]} 8... O-O {[%clk 0:02:47.9]} 9. h3 {[%clk 0:02:59.8]} 9... Ne7 {[%clk
0:02:42.4]} 10. O-O {[%clk 0:02:56.9]} 10... Ng6 {[%clk 0:02:36.1]} 11. Bc4
{[%clk 0:02:51.2]} 11... Nf4 {[%clk 0:02:28.1]} 12. Bxf4 {[%clk 0:02:51.4]}
12... exf4 {[%clk 0:02:29.7]} 13. e5 {[%clk 0:02:51.7]} 13... Be7 {[%clk
0:02:29.2]} 14. Qb3 {[%clk 0:02:46.7]} 14... c6 {[%clk 0:02:24.9]} 15. a4 {[%clk
0:02:45.7]} 15... Qc7 {[%clk 0:02:23.2]} 16. Rad1 {[%clk 0:02:30.9]} 16... Bf5
{[%clk 0:02:23.7]} 17. e6 {[%clk 0:02:27.9]} 17... fxe6 {[%clk 0:02:03.1]} 18.
Bxe6+ {[%clk 0:02:29.8]} 18... Kh8 {[%clk 0:01:59.8]} 19. Rd7 {[%clk 0:02:21]}
19... Qb6 {[%clk 0:01:47.2]} 20. Rxe7 {[%clk 0:02:00.2]} 20... Qc5 {[%clk
0:01:36.9]} 21. Rxb7 {[%clk 0:01:44.6]} 21... Be4 {[%clk 0:01:35.1]} 22. Qc4
{[%clk 0:01:25.8]} 22... Qxc4 {[%clk 0:01:26.7]} 23. Bxc4 {[%clk 0:01:27.7]}
23... Bxf3 {[%clk 0:01:25.8]} 24. gxf3 {[%clk 0:01:28.2]} 24... Rab8 {[%clk
0:01:27.7]} 25. Rxb8 {[%clk 0:01:27.8]} 25... Rxb8 {[%clk 0:01:29.3]} 26. b4
{[%clk 0:01:27.6]} 1-0

[Event "*** Titled Tuesday Blitz"]
[Site "Chess.com"]
[Date "2019.09.03"]
[Round "7"]
[White "Vasily_Papin"]
[Black "guillembaches"]
[Result "1-0"]
[WhiteElo "2623"]
[BlackElo "2327"]
[TimeControl "180+2"]
[EndTime "16:33:50 PDT"]
[Termination "Vasily_Papin won by resignation"]

1. c4 {[%clk 0:03:00.2]} 1... e6 {[%clk 0:03:00.3]} 2. g3 {[%clk 0:03:01.6]}
2... d5 {[%clk 0:03:01.3]} 3. Bg2 {[%clk 0:03:03.5]} 3... Nf6 {[%clk 0:03:02.5]}
4. Nf3 {[%clk 0:03:03.7]} 4... dxc4 {[%clk 0:02:56.8]} 5. Qa4+ {[%clk 0:03:04]}
5... Nbd7 {[%clk 0:02:57.4]} 6. Qxc4 {[%clk 0:03:04.4]} 6... a6 {[%clk
0:02:57.1]} 7. Qc2 {[%clk 0:03:04.7]} 7... c5 {[%clk 0:02:53.2]} 8. Nc3 {[%clk
0:03:05.8]} 8... Qc7 {[%clk 0:02:52]} 9. d4 {[%clk 0:03:00.1]} 9... cxd4 {[%clk
0:02:49.1]} 10. Nxd4 {[%clk 0:03:02]} 10... Bc5 {[%clk 0:02:50.1]} 11. Nb3
{[%clk 0:02:57.7]} 11... Bd6 {[%clk 0:02:50.5]} 12. O-O {[%clk 0:02:57.3]} 12...
O-O {[%clk 0:02:50.1]} 13. Rd1 {[%clk 0:02:58.3]} 13... Ne5 {[%clk 0:02:30.3]}
14. Bf4 {[%clk 0:02:49]} 14... Nc4 {[%clk 0:02:17.5]} 15. Nb5 {[%clk 0:02:30.8]}
15... axb5 {[%clk 0:01:54.3]} 16. Bxd6 {[%clk 0:02:31.4]} 16... Qb6 {[%clk
0:01:55.2]} 17. Bc5 {[%clk 0:02:18.3]} 17... Qa6 {[%clk 0:01:44.7]} 18. Bxf8
{[%clk 0:02:18.3]} 18... Kxf8 {[%clk 0:01:45.4]} 19. Nd2 {[%clk 0:01:58.5]}
19... Bd7 {[%clk 0:01:42.3]} 20. b3 {[%clk 0:01:56.1]} 20... Na3 {[%clk
0:01:27.9]} 21. Qc5+ {[%clk 0:01:55.8]} 21... Kg8 {[%clk 0:01:27.5]} 22. Rac1
{[%clk 0:01:51.1]} 22... h5 {[%clk 0:01:17]} 23. Qc7 {[%clk 0:01:22.5]} 23...
Ra7 {[%clk 0:00:54.7]} 24. Ne4 {[%clk 0:01:17.7]} 24... Nxe4 {[%clk 0:00:51.3]}
25. Qd8+ {[%clk 0:01:17.5]} 25... Kh7 {[%clk 0:00:51.8]} 26. Bxe4+ {[%clk
0:01:18]} 1-0

[Event "*** Titled Tuesday Blitz"]
[Site "Chess.com"]
[Date "2019.09.03"]
[Round "7"]
[White "bluejay1897"]
[Black "adriangschnitzer"]
[Result "0-1"]
[WhiteElo "2289"]
[BlackElo "2524"]
[TimeControl "180+2"]
[EndTime "16:34:20 PDT"]
[Termination "adriangschnitzer won by resignation"]

1. Nf3 {[%clk 0:02:58.5]} 1... e6 {[%clk 0:02:42.8]} 2. g3 {[%clk 0:02:58.3]}
2... d5 {[%clk 0:02:44.7]} 3. Bg2 {[%clk 0:02:58.7]} 3... Nf6 {[%clk 0:02:46.6]}
4. c4 {[%clk 0:02:58.9]} 4... c5 {[%clk 0:02:48.5]} 5. O-O {[%clk 0:02:59.4]}
5... Nc6 {[%clk 0:02:50]} 6. d4 {[%clk 0:03:00.5]} 6... dxc4 {[%clk 0:02:51.5]}
7. dxc5 {[%clk 0:03:01]} 7... Qxd1 {[%clk 0:02:51.2]} 8. Rxd1 {[%clk 0:03:02.9]}
8... Bxc5 {[%clk 0:02:51.5]} 9. Nbd2 {[%clk 0:03:04.5]} 9... c3 {[%clk
0:02:52.3]} 10. bxc3 {[%clk 0:03:06.4]} 10... Bd7 {[%clk 0:02:50.9]} 11. Nb3
{[%clk 0:03:07.3]} 11... Be7 {[%clk 0:02:50]} 12. c4 {[%clk 0:03:03.3]} 12...
O-O {[%clk 0:02:49.2]} 13. Bg5 {[%clk 0:03:02.9]} 13... Rfd8 {[%clk 0:02:49.4]}
14. Rab1 {[%clk 0:02:58.8]} 14... Be8 {[%clk 0:02:49.1]} 15. Nbd4 {[%clk
0:02:56.8]} 15... Rab8 {[%clk 0:02:36.8]} 16. Nxc6 {[%clk 0:02:49.4]} 16... Bxc6
{[%clk 0:02:38.7]} 17. Ne5 {[%clk 0:02:49.3]} 17... Bxg2 {[%clk 0:02:20.9]} 18.
Kxg2 {[%clk 0:02:48.2]} 18... Rxd1 {[%clk 0:02:21.1]} 19. Rxd1 {[%clk
0:02:48.1]} 19... Rd8 {[%clk 0:02:23]} 20. Nd3 {[%clk 0:02:34.4]} 20... Kf8
{[%clk 0:02:21.5]} 21. Rb1 {[%clk 0:02:22]} 21... b6 {[%clk 0:02:17.1]} 22. a4
{[%clk 0:02:19.1]} 22... Ne4 {[%clk 0:02:16.4]} 23. Bxe7+ {[%clk 0:02:18.7]}
23... Kxe7 {[%clk 0:02:18.3]} 24. a5 {[%clk 0:02:19.5]} 24... Nd2 {[%clk
0:02:16.8]} 25. Rb4 {[%clk 0:02:10.8]} 25... bxa5 {[%clk 0:02:16.3]} 26. Ra4
{[%clk 0:02:11.6]} 26... Nb3 {[%clk 0:02:13.1]} 27. Ra3 {[%clk 0:02:06.1]} 27...
Rb8 {[%clk 0:02:12.9]} 28. c5 {[%clk 0:02:07.2]} 28... f6 {[%clk 0:02:11.6]} 29.
h4 {[%clk 0:01:47.6]} 29... Kd7 {[%clk 0:02:11.4]} 30. Nf4 {[%clk 0:01:40.2]}
30... e5 {[%clk 0:02:01.9]} 31. Nd3 {[%clk 0:01:37.5]} 31... Rb5 {[%clk
0:02:01.7]} 32. f4 {[%clk 0:01:32.4]} 32... e4 {[%clk 0:01:57.2]} 33. Nb2 {[%clk
0:01:26.1]} 33... Nxc5 {[%clk 0:01:56.1]} 34. Nc4 {[%clk 0:01:27.2]} 34... a4
{[%clk 0:01:55.6]} 35. Kf2 {[%clk 0:01:20.5]} 35... Rb3 {[%clk 0:01:49.8]} 36.
Ra2 {[%clk 0:01:21.2]} 36... Rc3 {[%clk 0:01:46]} 37. Ne3 {[%clk 0:01:21.9]}
37... Kc6 {[%clk 0:01:41.9]} 38. g4 {[%clk 0:01:20.5]} 38... Kb5 {[%clk
0:01:40.7]} 39. g5 {[%clk 0:01:21.3]} 39... fxg5 {[%clk 0:01:40.6]} 40. hxg5
{[%clk 0:01:22.1]} 40... Ne6 {[%clk 0:01:41.7]} 41. Ng2 {[%clk 0:01:15.2]} 41...
Kb4 {[%clk 0:01:37.7]} 42. e3 {[%clk 0:01:12.6]} 42... Kb3 {[%clk 0:01:34.8]}
0-1

[Event "*** Titled Tuesday Blitz"]
[Site "Chess.com"]
[Date "2019.09.03"]
[Round "7"]
[White "Sutormin_DA"]
[Black "TigranLPetrosyan"]
[Result "0-1"]
[WhiteElo "2611"]
[BlackElo "2913"]
[TimeControl "180+2"]
[EndTime "16:34:25 PDT"]
[Termination "TigranLPetrosyan won by resignation"]

1. e4 {[%clk 0:02:23.9]} 1... g6 {[%clk 0:02:59.9]} 2. d4 {[%clk 0:02:25.1]}
2... Bg7 {[%clk 0:03:00.9]} 3. Nc3 {[%clk 0:02:26.3]} 3... a6 {[%clk 0:03:02.6]}
4. a4 {[%clk 0:02:23.9]} 4... d6 {[%clk 0:03:03.6]} 5. Bc4 {[%clk 0:02:23.9]}
5... Nf6 {[%clk 0:03:05.2]} 6. Nf3 {[%clk 0:02:25]} 6... O-O {[%clk 0:03:06.8]}
7. O-O {[%clk 0:02:26.5]} 7... c6 {[%clk 0:03:08.5]} 8. a5 {[%clk 0:02:25.4]}
8... d5 {[%clk 0:03:09.3]} 9. exd5 {[%clk 0:02:23.3]} 9... cxd5 {[%clk 0:03:10]}
10. Be2 {[%clk 0:02:19.1]} 10... Nc6 {[%clk 0:03:10.7]} 11. Ne5 {[%clk
0:02:10.4]} 11... Nxa5 {[%clk 0:03:11.2]} 12. Bf3 {[%clk 0:02:05.2]} 12... Nc6
{[%clk 0:03:10.8]} 13. Bf4 {[%clk 0:02:05]} 13... e6 {[%clk 0:03:09.4]} 14. Na4
{[%clk 0:01:56.9]} 14... Nxe5 {[%clk 0:03:07.2]} 15. Bxe5 {[%clk 0:01:56.6]}
15... Bd7 {[%clk 0:03:04.9]} 16. Nc5 {[%clk 0:01:52.8]} 16... Bc6 {[%clk
0:03:06.5]} 17. Re1 {[%clk 0:01:50.5]} 17... Nd7 {[%clk 0:03:07.4]} 18. Bxg7
{[%clk 0:01:48.3]} 18... Kxg7 {[%clk 0:03:09.3]} 19. Nxd7 {[%clk 0:01:35.8]}
19... Qxd7 {[%clk 0:03:11.2]} 20. Qd2 {[%clk 0:01:32.8]} 20... Qd6 {[%clk
0:03:12.3]} 21. h4 {[%clk 0:01:31.3]} 21... h6 {[%clk 0:03:12.5]} 22. g3 {[%clk
0:01:29.4]} 22... a5 {[%clk 0:03:05.9]} 23. Re5 {[%clk 0:01:29.1]} 23... a4
{[%clk 0:03:00.2]} 24. Kg2 {[%clk 0:01:01.3]} 24... f6 {[%clk 0:02:59.8]} 25.
Re3 {[%clk 0:00:55.2]} 25... e5 {[%clk 0:03:01]} 26. h5 {[%clk 0:00:46.3]} 26...
e4 {[%clk 0:02:53.5]} 27. Be2 {[%clk 0:00:47.3]} 27... g5 {[%clk 0:02:54.4]} 28.
Rc3 {[%clk 0:00:43.7]} 28... f5 {[%clk 0:02:55.2]} 29. Rc5 {[%clk 0:00:39]}
29... f4 {[%clk 0:02:55.1]} 30. Bb5 {[%clk 0:00:40.2]} 30... fxg3 {[%clk
0:02:53.6]} 31. fxg3 {[%clk 0:00:41]} 31... Rf3 {[%clk 0:02:54.4]} 32. Qe1
{[%clk 0:00:41.3]} 32... g4 {[%clk 0:02:45.1]} 33. Be2 {[%clk 0:00:35.1]} 33...
Raf8 {[%clk 0:02:21.7]} 34. Bxf3 {[%clk 0:00:36.3]} 34... gxf3+ {[%clk
0:02:23.6]} 35. Kf2 {[%clk 0:00:36.6]} 35... Rf5 {[%clk 0:02:25.2]} 36. Qh1
{[%clk 0:00:19]} 36... e3+ {[%clk 0:02:26.5]} 37. Kxe3 {[%clk 0:00:20.3]} 37...
Qe7+ {[%clk 0:02:28.1]} 38. Kd3 {[%clk 0:00:19.5]} 38... Qe2+ {[%clk 0:02:29.7]}
39. Kc3 {[%clk 0:00:21]} 39... Qe3+ {[%clk 0:02:31.4]} 40. Kb4 {[%clk
0:00:21.2]} 40... Qxd4+ {[%clk 0:02:33.1]} 0-1

[Event "*** Titled Tuesday Blitz"]
[Site "Chess.com"]
[Date "2019.09.03"]
[Round "7"]
[White "Caisachess"]
[Black "Kumi29"]
[Result "0-1"]
[WhiteElo "2288"]
[BlackElo "2535"]
[TimeControl "180+2"]
[EndTime "16:34:26 PDT"]
[Termination "Kumi29 won by resignation"]

1. e4 {[%clk 0:03:01.9]} 1... e6 {[%clk 0:03:00.1]} 2. d4 {[%clk 0:02:59.1]}
2... d5 {[%clk 0:03:01.3]} 3. Bd3 {[%clk 0:03:00.6]} 3... dxe4 {[%clk
0:03:01.4]} 4. Bxe4 {[%clk 0:03:02.5]} 4... Nf6 {[%clk 0:03:02.3]} 5. Bf3 {[%clk
0:03:04.1]} 5... c5 {[%clk 0:03:02.5]} 6. Ne2 {[%clk 0:03:03.7]} 6... Nc6 {[%clk
0:03:03.4]} 7. Be3 {[%clk 0:03:04.3]} 7... Nd5 {[%clk 0:03:03.7]} 8. Bxd5 {[%clk
0:02:49.9]} 8... Qxd5 {[%clk 0:03:04.4]} 9. Nbc3 {[%clk 0:02:45.3]} 9... Qxg2
{[%clk 0:03:05.6]} 10. Rg1 {[%clk 0:02:44.1]} 10... Qxh2 {[%clk 0:03:07.1]} 11.
dxc5 {[%clk 0:02:25.7]} 11... Ne5 {[%clk 0:02:46.7]} 12. Rg3 {[%clk 0:01:36.2]}
12... Bd7 {[%clk 0:02:29.1]} 13. Ng1 {[%clk 0:00:58.3]} 13... O-O-O {[%clk
0:02:21.8]} 14. Qe2 {[%clk 0:00:56.2]} 14... Bc6 {[%clk 0:02:20.8]} 15. Rd1
{[%clk 0:00:50.4]} 15... Be7 {[%clk 0:02:08.4]} 16. Bf4 {[%clk 0:00:39.9]} 16...
Ng6 {[%clk 0:01:44.5]} 17. Bd6 {[%clk 0:00:24.3]} 17... Bxd6 {[%clk 0:01:40]}
18. cxd6 {[%clk 0:00:24.5]} 18... h5 {[%clk 0:01:32.3]} 19. Rdd3 {[%clk
0:00:20.6]} 19... h4 {[%clk 0:01:28.9]} 20. Nf3 {[%clk 0:00:20.4]} 20... hxg3
{[%clk 0:01:26.3]} 21. Nxh2 {[%clk 0:00:20.5]} 21... gxh2 {[%clk 0:01:27.5]} 22.
Kd2 {[%clk 0:00:13.8]} 22... h1=Q {[%clk 0:01:26.9]} 23. Qe3 {[%clk 0:00:15]}
23... Qh6 {[%clk 0:01:21.7]} 0-1

[Event "*** Titled Tuesday Blitz"]
[Site "Chess.com"]
[Date "2019.09.03"]
[Round "7"]
[White "kinga2008"]
[Black "Potosino1970"]
[Result "0-1"]
[WhiteElo "1923"]
[BlackElo "2543"]
[TimeControl "180+2"]
[EndTime "16:34:29 PDT"]
[Termination "Potosino1970 won by checkmate"]

1. e4 {[%clk 0:03:01.9]} 1... c5 {[%clk 0:02:58]} 2. Nf3 {[%clk 0:03:00.8]} 2...
Nc6 {[%clk 0:02:58.9]} 3. d4 {[%clk 0:03:02.3]} 3... cxd4 {[%clk 0:02:59.3]} 4.
Nxd4 {[%clk 0:03:04.2]} 4... e5 {[%clk 0:03:00.1]} 5. Nxc6 {[%clk 0:03:02.8]}
5... bxc6 {[%clk 0:03:00.4]} 6. Nc3 {[%clk 0:03:03.9]} 6... Nf6 {[%clk
0:03:00.3]} 7. Bc4 {[%clk 0:02:58.5]} 7... Bb4 {[%clk 0:02:59.7]} 8. Bg5 {[%clk
0:02:54.1]} 8... h6 {[%clk 0:02:59.4]} 9. Bh4 {[%clk 0:02:39.3]} 9... O-O {[%clk
0:02:58.6]} 10. O-O {[%clk 0:02:38.4]} 10... Bxc3 {[%clk 0:02:48.2]} 11. bxc3
{[%clk 0:02:36.1]} 11... g5 {[%clk 0:02:48.1]} 12. Bg3 {[%clk 0:02:31.5]} 12...
Qe7 {[%clk 0:02:48]} 13. Qf3 {[%clk 0:02:27.3]} 13... d6 {[%clk 0:02:47.3]} 14.
h3 {[%clk 0:02:16.9]} 14... Kg7 {[%clk 0:02:47.1]} 15. Rad1 {[%clk 0:02:06.1]}
15... Be6 {[%clk 0:02:47.6]} 16. Bb3 {[%clk 0:02:05.3]} 16... a5 {[%clk
0:02:47.5]} 17. Rd3 {[%clk 0:02:00.4]} 17... a4 {[%clk 0:02:46.4]} 18. Bxe6
{[%clk 0:02:00.2]} 18... fxe6 {[%clk 0:02:46.2]} 19. Rfd1 {[%clk 0:02:01.2]}
19... Rad8 {[%clk 0:02:33]} 20. Qe3 {[%clk 0:02:00.7]} 20... Qc7 {[%clk
0:02:29.1]} 21. c4 {[%clk 0:01:53.5]} 21... c5 {[%clk 0:02:29.3]} 22. f3 {[%clk
0:01:50.9]} 22... Kg6 {[%clk 0:02:29.3]} 23. Qd2 {[%clk 0:01:46.1]} 23... Nh5
{[%clk 0:02:23.4]} 24. Bh2 {[%clk 0:01:31.8]} 24... Kf6 {[%clk 0:02:10.7]} 25.
g4 {[%clk 0:00:32.9]} 25... Nf4 {[%clk 0:02:00.3]} 26. Bxf4 {[%clk 0:00:32.3]}
26... gxf4 {[%clk 0:01:57]} 27. Rxd6 {[%clk 0:00:33.3]} 27... Rxd6 {[%clk
0:01:57.7]} 28. Qxd6 {[%clk 0:00:35.1]} 28... Qxd6 {[%clk 0:01:59]} 29. Rxd6
{[%clk 0:00:36.4]} 29... Rb8 {[%clk 0:02:00.3]} 30. Rc6 {[%clk 0:00:25.7]} 30...
Rb2 {[%clk 0:01:58]} 31. Rxc5 {[%clk 0:00:19.6]} 31... Rxc2 {[%clk 0:01:58.8]}
32. Rc8 {[%clk 0:00:16.7]} 32... Kg5 {[%clk 0:01:57.5]} 33. c5 {[%clk
0:00:13.7]} 33... Kh4 {[%clk 0:01:58.3]} 34. c6 {[%clk 0:00:14.4]} 34... Kg3
{[%clk 0:01:59.2]} 35. Kf1 {[%clk 0:00:14.1]} 35... Kxf3 {[%clk 0:02:00.4]} 36.
c7 {[%clk 0:00:14.1]} 36... Rc1# {[%clk 0:02:00.8]} 0-1

[Event "*** Titled Tuesday Blitz"]
[Site "Chess.com"]
[Date "2019.09.03"]
[Round "7"]
[White "Fighterman91"]
[Black "Parhamov"]
[Result "0-1"]
[WhiteElo "2750"]
[BlackElo "2911"]
[TimeControl "180+2"]
[EndTime "16:34:32 PDT"]
[Termination "Parhamov won by checkmate"]

1. e4 {[%clk 0:03:01.9]} 1... e6 {[%clk 0:03:01.2]} 2. d4 {[%clk 0:03:02.8]}
2... d5 {[%clk 0:03:02.9]} 3. Nc3 {[%clk 0:03:03.4]} 3... Bb4 {[%clk 0:03:03.5]}
4. e5 {[%clk 0:03:05]} 4... Qd7 {[%clk 0:03:04.4]} 5. Qg4 {[%clk 0:02:59.2]}
5... f5 {[%clk 0:03:05.3]} 6. Qg3 {[%clk 0:02:59.6]} 6... b6 {[%clk 0:03:05.5]}
7. h4 {[%clk 0:03:00.3]} 7... Bb7 {[%clk 0:03:04.7]} 8. Nh3 {[%clk 0:03:00.8]}
8... Nc6 {[%clk 0:03:05.5]} 9. Be3 {[%clk 0:02:33.4]} 9... O-O-O {[%clk
0:03:01.6]} 10. Nf4 {[%clk 0:02:09.1]} 10... Kb8 {[%clk 0:02:58.7]} 11. h5
{[%clk 0:02:06.5]} 11... Nh6 {[%clk 0:02:58.9]} 12. Be2 {[%clk 0:01:59.4]} 12...
Rdg8 {[%clk 0:02:56.7]} 13. Nd3 {[%clk 0:01:47.3]} 13... Bxc3+ {[%clk
0:02:55.7]} 14. bxc3 {[%clk 0:01:48.9]} 14... Nf7 {[%clk 0:02:57.1]} 15. Rb1
{[%clk 0:01:25.7]} 15... Na5 {[%clk 0:02:58.1]} 16. Nf4 {[%clk 0:01:20.8]} 16...
Bc6 {[%clk 0:02:52.3]} 17. Kd2 {[%clk 0:01:15.6]} 17... Kb7 {[%clk 0:02:50.8]}
18. Rb4 {[%clk 0:01:15.4]} 18... a6 {[%clk 0:02:51.3]} 19. f3 {[%clk 0:01:01.5]}
19... Bb5 {[%clk 0:02:52]} 20. Bd3 {[%clk 0:00:55.4]} 20... Nd8 {[%clk 0:02:20]}
21. Rhb1 {[%clk 0:00:51.1]} 21... Ndc6 {[%clk 0:02:17.9]} 22. Rxb5 {[%clk
0:00:42.7]} 22... axb5 {[%clk 0:02:17.8]} 23. Bxb5 {[%clk 0:00:42.2]} 23... g5
{[%clk 0:02:18.7]} 24. hxg6 {[%clk 0:00:42.7]} 24... hxg6 {[%clk 0:02:18]} 25.
Qg5 {[%clk 0:00:42.2]} 25... Qf7 {[%clk 0:02:08.4]} 26. Qf6 {[%clk 0:00:31.6]}
26... Qxf6 {[%clk 0:02:09.2]} 27. exf6 {[%clk 0:00:33.1]} 27... Nd8 {[%clk
0:02:08.3]} 28. Nd3 {[%clk 0:00:14]} 28... c6 {[%clk 0:02:01.6]} 29. Ba4 {[%clk
0:00:05.6]} 29... Rh2 {[%clk 0:01:57.6]} 30. Nf4 {[%clk 0:00:02.5]} 30... g5
{[%clk 0:01:57.9]} 31. Bg1 {[%clk 0:00:03.9]} 31... gxf4 {[%clk 0:01:57.9]} 32.
Bxh2 {[%clk 0:00:04.8]} 32... Rxg2+ {[%clk 0:01:59.8]} 33. Kd3 {[%clk
0:00:06.2]} 33... Rxh2 {[%clk 0:02:01.7]} 34. f7 {[%clk 0:00:07.6]} 34... Nc4
{[%clk 0:02:02]} 35. Rd1 {[%clk 0:00:08.7]} 35... Nb2# {[%clk 0:02:02.5]} 0-1

[Event "*** Titled Tuesday Blitz"]
[Site "Chess.com"]
[Date "2019.09.03"]
[Round "7"]
[White "babero_gordo"]
[Black "HrvojeZagreb"]
[Result "0-1"]
[WhiteElo "2172"]
[BlackElo "2080"]
[TimeControl "180+2"]
[EndTime "16:34:32 PDT"]
[Termination "HrvojeZagreb won by resignation"]

1. e4 {[%clk 0:03:01.9]} 1... e6 {[%clk 0:03:00.6]} 2. d4 {[%clk 0:03:02.7]}
2... d5 {[%clk 0:03:01.8]} 3. Nd2 {[%clk 0:03:04.3]} 3... dxe4 {[%clk
0:03:03.2]} 4. Nxe4 {[%clk 0:03:05]} 4... Nd7 {[%clk 0:03:04.6]} 5. Nf3 {[%clk
0:02:48.4]} 5... Ngf6 {[%clk 0:03:05.1]} 6. Bd3 {[%clk 0:02:49.9]} 6... Nxe4
{[%clk 0:03:05]} 7. Bxe4 {[%clk 0:02:51.4]} 7... Nf6 {[%clk 0:03:06.3]} 8. Bd3
{[%clk 0:02:50.9]} 8... c5 {[%clk 0:03:06.4]} 9. O-O {[%clk 0:02:47.9]} 9...
cxd4 {[%clk 0:03:03.5]} 10. Nxd4 {[%clk 0:02:47]} 10... Bd7 {[%clk 0:02:52.6]}
11. Re1 {[%clk 0:02:41.9]} 11... Bc5 {[%clk 0:02:49]} 12. Nb3 {[%clk 0:02:32.5]}
12... Bb6 {[%clk 0:02:47.3]} 13. Bg5 {[%clk 0:02:29.7]} 13... Qc7 {[%clk
0:02:44.9]} 14. Qd2 {[%clk 0:01:48.8]} 14... h6 {[%clk 0:02:33.3]} 15. Bf4
{[%clk 0:01:48]} 15... Qc6 {[%clk 0:02:19.4]} 16. a4 {[%clk 0:01:44.1]} 16... a6
{[%clk 0:02:19]} 17. Be5 {[%clk 0:01:34.2]} 17... Rd8 {[%clk 0:01:59.2]} 18. Qf4
{[%clk 0:01:23]} 18... Nd5 {[%clk 0:01:50.3]} 19. Qg3 {[%clk 0:01:13.3]} 19...
Bc7 {[%clk 0:01:41.1]} 20. Qxg7 {[%clk 0:01:02.4]} 20... Bxe5 {[%clk 0:01:39.4]}
21. Rxe5 {[%clk 0:01:01.3]} 21... Rf8 {[%clk 0:01:38.2]} 22. Nd4 {[%clk
0:00:48.8]} 22... Qb6 {[%clk 0:01:30.8]} 23. Rae1 {[%clk 0:00:43.3]} 23... Nf4
{[%clk 0:01:11.3]} 24. Qf6 {[%clk 0:00:21]} 24... Qxd4 {[%clk 0:01:07.6]} 25.
R5e4 {[%clk 0:00:17.3]} 25... Qxf6 {[%clk 0:01:06.3]} 0-1

[Event "*** Titled Tuesday Blitz"]
[Site "Chess.com"]
[Date "2019.09.03"]
[Round "7"]
[White "Chigorinetz"]
[Black "Kanthecarowin"]
[Result "0-1"]
[WhiteElo "2558"]
[BlackElo "2401"]
[TimeControl "180+2"]
[EndTime "16:34:35 PDT"]
[Termination "Kanthecarowin won by resignation"]

1. e4 {[%clk 0:01:20.7]} 1... c6 {[%clk 0:02:58]} 2. Nc3 {[%clk 0:01:22.6]} 2...
d5 {[%clk 0:02:59.3]} 3. Nf3 {[%clk 0:01:24]} 3... Bg4 {[%clk 0:02:59.5]} 4. h3
{[%clk 0:01:25.1]} 4... Bxf3 {[%clk 0:02:53.6]} 5. Qxf3 {[%clk 0:01:27]} 5... e6
{[%clk 0:02:55.5]} 6. d4 {[%clk 0:01:27.9]} 6... Nf6 {[%clk 0:02:50.6]} 7. Be3
{[%clk 0:01:26.7]} 7... Qb6 {[%clk 0:02:47.9]} 8. O-O-O {[%clk 0:01:26.5]} 8...
Bb4 {[%clk 0:02:48.6]} 9. e5 {[%clk 0:01:23]} 9... Bxc3 {[%clk 0:02:39.9]} 10.
bxc3 {[%clk 0:01:23]} 10... Ne4 {[%clk 0:02:41.2]} 11. Bd2 {[%clk 0:01:11.8]}
11... c5 {[%clk 0:02:32.6]} 12. Bd3 {[%clk 0:01:00.8]} 12... Nxd2 {[%clk
0:02:30.1]} 13. Rxd2 {[%clk 0:00:59.7]} 13... cxd4 {[%clk 0:02:32]} 14. cxd4
{[%clk 0:00:59.8]} 14... Nc6 {[%clk 0:02:31.2]} 15. c3 {[%clk 0:00:59.9]} 15...
Qa5 {[%clk 0:02:32]} 16. Kb2 {[%clk 0:00:58.1]} 16... Nxd4 {[%clk 0:02:23.7]}
17. Qg4 {[%clk 0:00:57.8]} 17... Nb5 {[%clk 0:02:16.9]} 18. Rc1 {[%clk
0:00:53.5]} 18... Qa3+ {[%clk 0:02:04.2]} 19. Kc2 {[%clk 0:00:54]} 19... Nxc3
{[%clk 0:01:59.1]} 20. Qxg7 {[%clk 0:00:50.5]} 20... Rf8 {[%clk 0:01:51]} 21.
Bxh7 {[%clk 0:00:16.7]} 21... Ne4 {[%clk 0:01:43.7]} 22. Bxe4 {[%clk 0:00:16.4]}
22... Rc8+ {[%clk 0:01:42.1]} 23. Kd1 {[%clk 0:00:16.6]} 23... Rxc1+ {[%clk
0:01:42.6]} 24. Ke2 {[%clk 0:00:18.5]} 24... dxe4 {[%clk 0:01:34.4]} 25. Qg5
{[%clk 0:00:19.4]} 25... Qa5 {[%clk 0:01:24.4]} 26. Qe3 {[%clk 0:00:17]} 26...
Qb5+ {[%clk 0:01:21.4]} 0-1